fUSD/lending_fUSD_20260427
["ID","MTS","AMOUNT","RATE_DAILY","PERIOD"]
[421245861,1777287113251,-762.27,0.00035068,120]
[421245862,1777287113261,-1157.96,0.00035068,120]
[421245863,1777287113271,-633.93,0.00035068,120]
[421245864,1777287113280,-874.69,0.00035068,120]
[421245865,1777287113290,-500.0,0.00035068,120]
[421245866,1777287113300,-900.98,0.00035068,120]
[421245867,1777287113310,-500.0,0.00035068,120]
[421245868,1777287113319,-10204.73,0.00035068,120]
[421245869,1777287113329,-500.0,0.00035068,120]
[421245870,1777287113338,-1526.17,0.00035068,120]
[421245871,1777287113348,-500.0,0.00035068,120]
[421245872,1777287113357,-500.0,0.00035068,120]
[421245873,1777287113366,-891.6,0.00035068,120]
[421245874,1777287113375,-1367.53,0.00035068,120]
[421245875,1777287113384,-500.0,0.00035068,120]
[421245876,1777287113394,-683.25,0.00035068,120]
[421245877,1777287113403,-737.72,0.00035068,120]
[421245878,1777287113412,-500.0,0.00035068,120]
[421245879,1777287113421,-284.37275648,0.00035068,120]
[421245880,1777287113430,-10627.51,0.00035068,11]
[421245881,1777287113439,-606.04586677,0.00035068,120]
[421245882,1777287113448,-1508.4,0.00035068,120]
[421245883,1777287113457,-500.0,0.00035068,120]
[421245884,1777287113466,-944.61,0.00035068,120]
[421245885,1777287113476,-1952.39,0.00035068,120]
[421245886,1777287113485,-992.31,0.00035068,120]
[421245887,1777287113495,-644.32,0.00035068,120]
[421245888,1777287113503,-855.86,0.00035068,120]
[421245889,1777287113513,-938.15,0.00035068,120]
[421245890,1777287113522,-500.0,0.00035068,120]
[421245891,1777287113532,-976.87,0.00035068,120]
[421245892,1777287113541,-500.0,0.00035068,120]
[421245893,1777287113550,-500.0,0.00035068,120]
[421245894,1777287113559,-500.0,0.00035068,120]
[421245895,1777287113568,-505.03,0.00035068,120]
[421245896,1777287113577,-889.14,0.00035068,120]
[421245897,1777287113587,-500.0,0.00035068,120]
[421245898,1777287113596,-816.73,0.00035068,120]
[421245899,1777287113605,-624.72,0.00035068,120]
[421245900,1777287113614,-9821.09,0.00035068,14]
[421245901,1777287113623,-523.03,0.00035068,120]
[421245902,1777287113632,-2650.84,0.00035068,2]
[421245903,1777287113641,-500.0,0.00035068,120]
[421245904,1777287113651,-822.98,0.00035068,120]
[421245905,1777287113660,-729.37,0.00035068,120]
[421245906,1777287113670,-1000.0,0.00035068,120]
[421245907,1777287113680,-1044.79,0.00035068,120]
[421245908,1777287113689,-2033.75,0.00035068,120]
[421245909,1777287113699,-2315.34,0.00035068,120]
[421245910,1777287113707,-957.71,0.00035068,120]
[421245911,1777287113717,-651.78,0.00035068,120]
[421245912,1777287113727,-500.0,0.00035068,120]
[421245913,1777287113736,-1144.22,0.00035068,120]
[421245914,1777287113745,-872.94,0.00035068,120]
[421245915,1777287113755,-500.0,0.00035068,120]
[421245916,1777287113764,-500.0,0.00035068,120]
[421245917,1777287113773,-905.69,0.00035068,120]
[421245918,1777287113783,-659.77,0.00035068,120]
[421245919,1777287113792,-500.0,0.00035068,120]
[421245920,1777287113802,-572.93,0.00035068,120]
[421245921,1777287113811,-526.89,0.00035068,120]
[421245922,1777287113821,-2198.73,0.00035068,31]
[421245923,1777287113830,-936.24,0.00035068,120]
[421245924,1777287113839,-7236.62,0.00035068,120]
[421245925,1777287113848,-601.2,0.00035068,120]
[421245926,1777287113857,-1500.0,0.00035068,120]
[421245927,1777287113867,-1282.75,0.00035068,120]
[421245928,1777287113876,-500.0,0.00035068,120]
[421245929,1777287113885,-500.0,0.00035068,120]
[421245930,1777287113895,-500.0,0.00035068,120]
[421245931,1777287113905,-350.59338938,0.00035068,90]
[421245932,1777287113914,-221.0,0.00035178,30]
[421245933,1777287113923,-156.0,0.00035178,30]
[421245934,1777287113932,-313.0,0.00035178,30]
[421245935,1777287113942,-401.0,0.00035178,30]
[421245936,1777287113952,-6009.96,0.000352,7]
[421245937,1777287113962,-500.0,0.00035233,120]
[421245938,1777287113972,-158.60953261,0.00035242,2]
[421245939,1777287113981,-451.0,0.00035247,30]
[421245940,1777287113991,-159.0,0.00035247,30]
[421245941,1777287114001,-153.0,0.00035247,30]
[421245942,1777287114015,-1182.0,0.00035247,30]
[421245943,1777287114025,-167.0145651,0.00035248,30]
[421245944,1777287114034,-158.0,0.00035248,30]
[421245945,1777287114043,-300.0,0.00035324,30]
[421245946,1777287114052,-200.0,0.00035325,2]
[421245947,1777287114062,-200.0,0.00035325,2]
[421245948,1777287114071,-239.0,0.00035325,2]
[421245949,1777287114080,-200.0,0.00035325,2]
[421245950,1777287114090,-800.0,0.00035325,14]
[421245951,1777287114099,-800.0,0.00035325,14]
[421245952,1777287114109,-800.0,0.00035325,14]
[421245953,1777287114118,-800.0,0.00035325,14]
[421245954,1777287114128,-800.0,0.00035325,14]
[421245955,1777287114141,-800.0,0.00035325,14]
[421245956,1777287114150,-800.0,0.00035325,14]
[421245957,1777287114159,-800.0,0.00035325,14]
[421245958,1777287114169,-800.0,0.00035325,14]
[421245959,1777287114179,-800.0,0.00035325,14]
[421245960,1777287114188,-800.0,0.00035325,14]
[421245961,1777287114197,-800.0,0.00035325,14]
[421245962,1777287114207,-800.0,0.00035325,14]
[421245963,1777287114217,-800.0,0.00035325,14]
[421245964,1777287114227,-800.0,0.00035325,14]
[421245965,1777287114236,-800.0,0.00035325,14]
[421245966,1777287114246,-800.0,0.00035325,14]
[421245967,1777287114255,-200.0,0.00035325,2]
[421245968,1777287114265,-200.0,0.00035325,2]
[421245969,1777287114275,-200.0,0.00035325,2]
[421245970,1777287114284,-200.0,0.00035325,2]
[421245971,1777287114294,-200.0,0.00035325,2]
[421245972,1777287114303,-200.0,0.00035325,2]
[421245973,1777287114312,-200.0,0.00035325,2]
[421245974,1777287114322,-200.0,0.00035325,2]
[421245975,1777287114332,-200.0,0.00035325,2]
[421245976,1777287114342,-200.0,0.00035325,2]
[421245977,1777287114352,-200.0,0.00035325,2]
[421245978,1777287114361,-200.0,0.00035325,2]
[421245979,1777287114371,-200.0,0.00035325,2]
[421245980,1777287114380,-200.0,0.00035325,2]
[421245981,1777287114390,-200.0,0.00035325,2]
[421245982,1777287114399,-200.0,0.00035325,2]
[421245983,1777287114409,-200.0,0.00035325,2]
[421245984,1777287114419,-200.0,0.00035325,2]
[421245985,1777287114428,-200.0,0.00035325,2]
[421245986,1777287114438,-200.0,0.00035325,2]
[421245987,1777287114448,-800.0,0.00035325,14]
[421245988,1777287114458,-800.0,0.00035325,14]
[421245989,1777287114467,-800.0,0.00035325,14]
[421245990,1777287114476,-800.0,0.00035325,14]
[421245991,1777287114486,-800.0,0.00035325,14]
[421245992,1777287114495,-800.0,0.00035325,14]
[421245993,1777287114504,-800.0,0.00035325,14]
[421245994,1777287114514,-800.0,0.00035325,14]
[421245995,1777287114525,-800.0,0.00035325,14]
[421245996,1777287114750,-200.0,0.00035325,2]
[421245997,1777287114763,-200.0,0.00035325,2]
[421245998,1777287114772,-200.0,0.00035325,2]
[421245999,1777287114781,-200.0,0.00035325,2]
[421246000,1777287114791,-200.0,0.00035325,2]
[421246001,1777287114800,-200.0,0.00035325,2]
[421246002,1777287114810,-200.0,0.00035325,2]
[421246003,1777287114820,-200.0,0.00035325,2]
[421246004,1777287114830,-200.0,0.00035325,2]
[421246005,1777287114840,-200.0,0.00035325,2]
[421246006,1777287114849,-200.0,0.00035325,2]
[421246007,1777287114859,-200.0,0.00035325,2]
[421246008,1777287114868,-200.0,0.00035325,2]
[421246009,1777287114878,-200.0,0.00035325,2]
[421246010,1777287114887,-200.0,0.00035325,2]
[421246011,1777287114897,-200.0,0.00035325,2]
[421246012,1777287114907,-300.0,0.00035325,2]
[421246013,1777287114916,-200.0,0.00035325,2]
[421246014,1777287114926,-200.0,0.00035325,2]
[421246015,1777287114935,-200.0,0.00035325,2]
[421246016,1777287114945,-200.0,0.00035325,2]
[421246017,1777287114954,-200.0,0.00035325,2]
[421246018,1777287114964,-200.0,0.00035325,2]
[421246019,1777287114974,-200.0,0.00035325,2]
[421246020,1777287114984,-200.0,0.00035325,2]
[421246021,1777287114994,-200.0,0.00035325,2]
[421246022,1777287115004,-200.0,0.00035325,2]
[421246023,1777287115015,-200.0,0.00035325,2]
[421246024,1777287115025,-200.0,0.00035325,2]
[421246025,1777287115035,-200.0,0.00035325,2]
[421246026,1777287115045,-200.0,0.00035325,2]
[421246027,1777287115055,-200.0,0.00035325,2]
[421246028,1777287115064,-200.0,0.00035325,2]
[421246029,1777287115075,-800.0,0.00035325,14]
[421246030,1777287115084,-800.0,0.00035325,14]
[421246031,1777287115094,-800.0,0.00035325,14]
[421246032,1777287115104,-800.0,0.00035325,14]
[421246033,1777287115114,-193.0,0.00035325,14]
[421246034,1777287115124,-40919.8,0.00035342,120]
[421246035,1777287115134,-5510.884336,0.00035342,120]
[421246036,1777287115143,-406.931409,0.00035342,120]
[421246037,1777287115153,-325.762595,0.00035342,120]
[421246038,1777287115163,-342.964341,0.00035342,120]
[421246039,1777287115172,-2698.281126,0.00035342,120]
[421246040,1777287115182,-500.0,0.00035342,90]
[421246041,1777287115191,-500.0,0.00035342,120]
[421246042,1777287115201,-500.0,0.00035342,120]
[421246043,1777287115210,-500.0,0.00035342,120]
[421246044,1777287115220,-500.0,0.00035342,120]
[421246045,1777287115229,-863.36,0.00035342,120]
[421246046,1777287115239,-500.0,0.00035342,2]
[421246047,1777287115249,-500.0,0.00035342,120]
[421246048,1777287115259,-599.06,0.00035342,120]
[421246049,1777287115269,-640.83,0.00035342,120]
[421246050,1777287115278,-500.0,0.00035342,120]
[421246051,1777287115288,-500.0,0.00035342,120]
[421246052,1777287115298,-500.0,0.00035342,120]
[421246053,1777287115308,-1211.95,0.00035342,120]
[421246054,1777287115319,-565.53,0.00035342,120]
[421246055,1777287115329,-553.4,0.00035342,120]
[421246056,1777287115338,-715.07,0.00035342,120]
[421246057,1777287115348,-500.0,0.00035342,120]
[421246058,1777287115358,-938.55,0.00035342,120]
[421246059,1777287115367,-1090.36,0.00035342,120]
[421246060,1777287115377,-634.95,0.00035342,120]
[421246061,1777287115387,-500.0,0.00035342,120]
[421246062,1777287115396,-500.0,0.00035342,120]
[421246063,1777287115406,-528.14,0.00035342,120]
[421246064,1777287115416,-500.0,0.00035342,120]
[421246065,1777287115425,-1072.38,0.00035342,120]
[421246066,1777287115435,-1314.31,0.00035342,120]
[421246067,1777287115445,-703.47,0.00035342,120]
[421246068,1777287115455,-500.0,0.00035342,120]
[421246069,1777287115464,-500.0,0.00035342,120]
[421246070,1777287115474,-500.0,0.00035342,120]
[421246071,1777287115483,-500.0,0.00035342,120]
[421246072,1777287115493,-516.81,0.00035342,120]
[421246073,1777287115502,-284.16907174,0.00035342,30]
[421246074,1777287115512,-2357.31,0.00035342,120]
[421246075,1777287115522,-722.01,0.00035342,120]
[421246076,1777287115532,-500.0,0.00035342,120]
[421246077,1777287115541,-500.0,0.00035342,120]
[421246078,1777287115550,-500.0,0.00035342,120]
[421246079,1777287115560,-500.0,0.00035342,120]
[421246080,1777287115570,-1649.9,0.00035342,30]
[421246081,1777287115579,-527.75,0.00035342,120]
[421246082,1777287115589,-500.0,0.00035342,120]
[421246083,1777287115598,-500.0,0.00035342,120]
[421246084,1777287115608,-663.98,0.00035342,120]
[421246085,1777287115617,-752.81,0.00035342,120]
[421246086,1777287115627,-696.22,0.00035342,120]
[421246087,1777287115636,-500.0,0.00035342,120]
[421246088,1777287115645,-500.0,0.00035342,120]
[421246089,1777287115655,-1446.95,0.00035342,120]
[421246090,1777287115664,-964.96,0.00035342,120]
[421246091,1777287115674,-500.0,0.00035342,120]
[421246092,1777287115684,-529.41,0.00035342,120]
[421246093,1777287115693,-500.0,0.00035342,120]
[421246094,1777287115703,-500.0,0.00035342,120]
[421246095,1777287115713,-159.797385,0.00035342,120]
[421246096,1777287115723,-500.0,0.00035342,120]
[421246097,1777287115733,-1077.32,0.00035342,120]
[421246098,1777287115743,-1000.0,0.00035342,120]
[421246099,1777287115752,-949.83,0.00035342,120]
[421246100,1777287115762,-765.4,0.00035342,120]
[421246101,1777287115771,-599.76,0.00035342,120]
[421246102,1777287115780,-500.0,0.00035342,120]
[421246103,1777287115790,-500.0,0.00035342,120]
[421246104,1777287115800,-500.0,0.00035342,120]
[421246105,1777287115809,-500.0,0.00035342,120]
[421246106,1777287115818,-812.99,0.00035342,120]
[421246107,1777287115827,-500.0,0.00035342,120]
[421246108,1777287115837,-1319.91,0.00035342,120]
[421246109,1777287115846,-559.35,0.00035342,120]
[421246110,1777287115856,-1706.39,0.00035342,120]
[421246111,1777287115866,-500.0,0.00035342,120]
[421246112,1777287115875,-500.0,0.00035342,120]
[421246113,1777287115885,-500.0,0.00035342,120]
[421246114,1777287115894,-500.0,0.00035342,120]
[421246115,1777287115904,-668.63,0.00035342,120]
[421246116,1777287115915,-500.0,0.00035342,120]
[421246117,1777287115925,-1799.8,0.00035342,30]
[421246118,1777287115934,-2310.82,0.00035342,120]
[421246119,1777287115943,-500.0,0.00035342,120]
[421246120,1777287115953,-951.83,0.00035342,120]
[421246121,1777287115963,-500.0,0.00035342,120]
[421246122,1777287115972,-500.0,0.00035342,120]
[421246123,1777287115982,-515.16176529,0.00035342,120]
[421246124,1777287115991,-500.0,0.00035342,120]
[421246125,1777287116000,-500.0,0.00035342,120]
[421246126,1777287116010,-500.0,0.00035342,120]
[421246127,1777287116020,-500.0,0.00035342,120]
[421246128,1777287116030,-691.55,0.00035342,120]
[421246129,1777287116040,-500.0,0.00035342,120]
[421246130,1777287116049,-172.47291315,0.00035342,120]
[421246131,1777287116059,-822.42,0.00035342,120]
[421246132,1777287116068,-690.22,0.00035342,120]
[421246133,1777287116077,-1041.51,0.00035342,120]
[421246134,1777287116087,-817.53,0.00035342,120]
[421246135,1777287116097,-500.0,0.00035342,120]
[421246136,1777287116106,-500.0,0.00035342,120]
[421246137,1777287116115,-500.0,0.00035342,120]
[421246138,1777287116125,-812.8,0.00035342,120]
[421246139,1777287116134,-894.99,0.00035342,120]
[421246140,1777287116144,-1018.47,0.00035342,120]
[421246141,1777287116154,-500.0,0.00035342,120]
[421246142,1777287116164,-1560.45,0.00035342,10]
[421246143,1777287116174,-654.65,0.00035342,120]
[421246144,1777287116184,-770.15,0.00035342,120]
[421246145,1777287116193,-747.23,0.00035342,120]
[421246146,1777287116203,-592.21,0.00035342,120]
[421246147,1777287116212,-1047.65,0.00035342,120]
[421246148,1777287116222,-500.0,0.00035342,120]
[421246149,1777287116232,-500.0,0.00035342,120]
[421246150,1777287116242,-500.0,0.00035342,120]
[421246151,1777287116251,-548.93,0.00035342,120]
[421246152,1777287116260,-500.0,0.00035342,120]
[421246153,1777287116270,-500.0,0.00035342,120]
[421246154,1777287116280,-500.0,0.00035342,120]
[421246155,1777287116290,-500.0,0.00035342,120]
[421246156,1777287116300,-1885.25,0.00035342,120]
[421246157,1777287116311,-632.88,0.00035342,120]
[421246158,1777287116321,-810.82,0.00035342,120]
[421246159,1777287116330,-696.25,0.00035342,120]
[421246160,1777287116340,-1242.85,0.00035342,120]
[421246161,1777287116350,-500.0,0.00035342,120]
[421246162,1777287116360,-500.0,0.00035342,120]
[421246163,1777287116369,-546.24277295,0.00035342,120]
[421246164,1777287116378,-1579.01,0.00035342,120]
[421246165,1777287116387,-629.86613845,0.00035342,120]
[421246166,1777287116396,-601.37,0.00035342,120]
[421246167,1777287116406,-1456.44,0.00035342,120]
[421246168,1777287116415,-595.98,0.00035342,120]
[421246169,1777287116424,-1572.92,0.00035342,120]
[421246170,1777287116434,-500.0,0.00035342,120]
[421246171,1777287116444,-1223.21,0.00035342,120]
[421246172,1777287116453,-500.0,0.00035342,120]
[421246173,1777287116463,-987.31,0.00035342,120]
[421246174,1777287116472,-500.0,0.00035342,120]
[421246175,1777287116481,-500.0,0.00035342,120]
[421246176,1777287116491,-685.94,0.00035342,120]
[421246177,1777287116501,-996.26,0.00035342,120]
[421246178,1777287116510,-977.11,0.00035342,120]
[421246179,1777287116520,-1114.4,0.00035342,120]
[421246180,1777287116529,-922.87,0.00035342,120]
[421246181,1777287116539,-694.64,0.00035342,120]
[421246182,1777287116548,-876.6,0.00035342,120]
[421246183,1777287116558,-1292.17,0.00035342,120]
[421246184,1777287116567,-500.0,0.00035342,120]
[421246185,1777287116578,-2804.65,0.00035342,120]
[421246186,1777287116588,-831.75,0.00035342,14]
[421246187,1777287116597,-500.0,0.00035342,120]
[421246188,1777287116606,-500.0,0.00035342,14]
[421246189,1777287116616,-695.08,0.00035342,120]
[421246190,1777287116625,-975.03,0.00035342,120]
[421246191,1777287116634,-500.0,0.00035342,120]
[421246192,1777287116644,-500.0,0.00035342,120]
[421246193,1777287116654,-667.25,0.00035342,120]
[421246194,1777287116664,-500.0,0.00035342,120]
[421246195,1777287116674,-500.0,0.00035342,120]
[421246196,1777287116684,-500.0,0.00035342,120]
[421246197,1777287116693,-514.22,0.00035342,120]
[421246198,1777287116703,-809.84,0.00035342,120]
[421246199,1777287116712,-500.0,0.00035342,120]
[421246200,1777287116722,-808.81,0.00035342,120]
[421246201,1777287116731,-656.37,0.00035342,120]
[421246202,1777287116741,-924.49,0.00035342,120]
[421246203,1777287116750,-1754.83,0.00035342,120]
[421246204,1777287116759,-816.58,0.00035342,120]
[421246205,1777287116768,-1699.99,0.00035342,120]
[421246206,1777287116778,-963.43,0.00035342,120]
[421246207,1777287116787,-988.21,0.00035342,120]
[421246208,1777287116797,-803.53,0.00035342,120]
[421246209,1777287116807,-500.0,0.00035342,120]
[421246210,1777287116817,-983.75,0.00035342,120]
[421246211,1777287116827,-806.48,0.00035342,120]
[421246212,1777287116836,-1721.56,0.00035342,120]
[421246213,1777287116846,-899.89,0.00035342,120]
[421246214,1777287116855,-1666.52,0.00035342,120]
[421246215,1777287116864,-903.54,0.00035342,120]
[421246216,1777287117213,-640.16,0.00035342,120]
[421246217,1777287117225,-2805.42,0.00035342,120]
[421246218,1777287117235,-500.0,0.00035342,120]
[421246219,1777287117244,-1658.74,0.00035342,120]
[421246220,1777287117254,-507.17,0.00035342,120]
[421246221,1777287117264,-500.0,0.00035342,120]
[421246222,1777287117274,-760.12,0.00035342,120]
[421246223,1777287117283,-1131.48,0.00035342,120]
[421246224,1777287117292,-501.63487114,0.00035342,120]
[421246225,1777287117302,-500.0,0.00035342,120]
[421246226,1777287117311,-1275.35,0.00035342,120]
[421246227,1777287117320,-1746.47,0.00035342,120]
[421246228,1777287117329,-1186.63,0.00035342,120]
[421246229,1777287117339,-726.02,0.00035342,120]
[421246230,1777287117347,-857.8,0.00035342,120]
[421246231,1777287117357,-500.0,0.00035342,120]
[421246232,1777287117367,-942.29,0.00035342,120]
[421246233,1777287117376,-499.1978459,0.00035342,90]
[421246234,1777287117386,-888.77,0.00035342,120]
[421246235,1777287117395,-615.52,0.00035342,120]
[421246236,1777287117405,-500.0,0.00035342,120]
[421246237,1777287117414,-691.21,0.00035342,120]
[421246238,1777287117423,-1549.89,0.00035342,120]
[421246239,1777287117432,-597.1,0.00035342,120]
[421246240,1777287117441,-500.0,0.00035342,120]
[421246241,1777287117451,-516.45,0.00035342,120]
[421246242,1777287117460,-646.3,0.00035342,120]
[421246243,1777287117469,-996.25,0.00035342,120]
[421246244,1777287117479,-729.86,0.00035342,120]
[421246245,1777287117488,-610.0377328,0.00035342,120]
[421246246,1777287117498,-862.2,0.00035342,120]
[421246247,1777287117508,-902.68,0.00035342,120]
[421246248,1777287117517,-500.0,0.00035342,120]
[421246249,1777287117527,-932.95,0.00035342,120]
[421246250,1777287117536,-501.5,0.00035342,120]
[421246251,1777287117546,-932.07,0.00035342,120]
[421246252,1777287117556,-638.61,0.00035342,120]
[421246253,1777287117565,-946.6,0.00035342,120]
[421246254,1777287117575,-500.0,0.00035342,120]
[421246255,1777287117584,-1014.18,0.00035342,120]
[421246256,1777287117593,-500.0,0.00035342,120]
[421246257,1777287117603,-714.89,0.00035342,120]
[421246258,1777287117612,-1988.17,0.00035342,120]
[421246259,1777287117621,-563.81,0.00035342,120]
[421246260,1777287117631,-500.0,0.00035342,120]
[421246261,1777287117640,-500.0,0.00035342,120]
[421246262,1777287117649,-500.0,0.00035342,7]
[421246263,1777287117659,-200.54997099,0.00035342,120]
[421246264,1777287117668,-885.91,0.00035342,120]
[421246265,1777287117678,-1640.34,0.00035342,120]
[421246266,1777287117688,-500.0,0.00035342,120]
[421246267,1777287117697,-891.92,0.00035342,120]
[421246268,1777287117706,-669.56,0.00035342,120]
[421246269,1777287117716,-500.0,0.00035342,120]
[421246270,1777287117726,-1390.78,0.00035342,120]
[421246271,1777287117735,-500.0,0.00035342,120]
[421246272,1777287117744,-500.0,0.00035342,120]
[421246273,1777287117754,-327.18514346,0.00035342,120]
[421246274,1777287117763,-500.0,0.00035342,120]
[421246275,1777287117773,-500.0,0.00035342,60]
[421246276,1777287117782,-668.1,0.00035342,120]
[421246277,1777287117791,-500.0,0.00035342,120]
[421246278,1777287117801,-660.18,0.00035342,120]
[421246279,1777287117811,-691.69,0.00035342,120]
[421246280,1777287117821,-500.0,0.00035342,120]
[421246281,1777287117830,-691.03,0.00035342,120]
[421246282,1777287117840,-500.0,0.00035342,120]
[421246283,1777287117849,-618.59,0.00035342,30]
[421246284,1777287117858,-922.63,0.00035342,120]
[421246285,1777287117867,-953.58,0.00035342,120]
[421246286,1777287117877,-4917.9,0.00035342,120]
[421246287,1777287117886,-525.11,0.00035342,120]
[421246288,1777287117895,-551.36,0.00035342,120]
[421246289,1777287117905,-500.0,0.00035342,120]
[421246290,1777287117914,-840.29,0.00035342,120]
[421246291,1777287117924,-739.88,0.00035342,120]
[421246292,1777287117935,-919.84,0.00035342,120]
[421246293,1777287117945,-1800.54,0.00035342,120]
[421246294,1777287117955,-500.0,0.00035342,120]
[421246295,1777287117964,-1344.25,0.00035342,120]
[421246296,1777287117973,-500.0,0.00035342,30]
[421246297,1777287117983,-500.0,0.00035342,120]
[421246298,1777287117992,-916.78,0.00035342,120]
[421246299,1777287118001,-500.0,0.00035342,60]
[421246300,1777287118011,-1345.97,0.00035342,120]
[421246301,1777287118020,-1078.03,0.00035342,120]
[421246302,1777287118029,-500.0,0.00035342,120]
[421246303,1777287118039,-500.0,0.00035342,14]
[421246304,1777287118049,-947.63,0.00035342,120]
[421246305,1777287118059,-549.91,0.00035342,120]
[421246306,1777287118069,-500.0,0.00035342,120]
[421246307,1777287118079,-748.29,0.00035342,120]
[421246308,1777287118088,-502.14246672,0.00035342,120]
[421246309,1777287118099,-1742.02,0.00035342,120]
[421246310,1777287118108,-980.13,0.00035342,120]
[421246311,1777287118118,-547.89,0.00035342,120]
[421246312,1777287118127,-500.0,0.00035342,120]
[421246313,1777287118136,-500.0,0.00035342,120]
[421246314,1777287118146,-808.71,0.00035342,120]
[421246315,1777287118156,-697.0,0.00035342,120]
[421246316,1777287118167,-698.74,0.00035342,120]
[421246317,1777287118177,-500.0,0.00035342,120]
[421246318,1777287118187,-861.18,0.00035342,120]
[421246319,1777287118196,-307.78690997,0.00035342,120]
[421246320,1777287118206,-599.72,0.00035342,120]
[421246321,1777287118216,-971.15,0.00035342,120]
[421246322,1777287118226,-1898.91,0.00035342,120]
[421246323,1777287118236,-2008.02,0.00035342,120]
[421246324,1777287118247,-500.0,0.00035342,120]
[421246325,1777287118256,-546.88,0.00035342,120]
[421246326,1777287118266,-500.0,0.00035342,120]
[421246327,1777287118275,-500.0,0.00035342,120]
[421246328,1777287118284,-933.2,0.00035342,120]
[421246329,1777287118294,-923.43,0.00035342,120]
[421246330,1777287118304,-814.23,0.00035342,7]
[421246331,1777287118314,-500.0,0.00035342,120]
[421246332,1777287118323,-545.89,0.00035342,120]
[421246333,1777287118333,-500.0,0.00035342,120]
[421246334,1777287118343,-607.22,0.00035342,120]
[421246335,1777287118352,-500.0,0.00035342,120]
[421246336,1777287118361,-1022.01,0.00035342,120]
[421246337,1777287118370,-1403.37,0.00035342,120]
[421246338,1777287118380,-571.92,0.00035342,120]
[421246339,1777287118389,-996.98,0.00035342,120]
[421246340,1777287118399,-500.0,0.00035342,120]
[421246341,1777287118409,-500.0,0.00035342,120]
[421246342,1777287118418,-500.0,0.00035342,120]
[421246343,1777287118428,-500.0,0.00035342,120]
[421246344,1777287118437,-500.0,0.00035342,120]
[421246345,1777287118448,-500.0,0.00035342,120]
[421246346,1777287118458,-500.0,0.00035342,120]
[421246347,1777287118468,-2027.39,0.00035342,120]
[421246348,1777287118479,-500.0,0.00035342,120]
[421246349,1777287118488,-544.78,0.00035342,120]
[421246350,1777287118498,-1173.63,0.00035342,120]
[421246351,1777287118508,-580.92,0.00035342,120]
[421246352,1777287118518,-500.0,0.00035342,120]
[421246353,1777287118527,-500.0,0.00035342,120]
[421246354,1777287118537,-500.0,0.00035342,120]
[421246355,1777287118547,-957.19,0.00035342,120]
[421246356,1777287118556,-500.0,0.00035342,120]
[421246357,1777287118566,-500.0,0.00035342,120]
[421246358,1777287118575,-1129.42,0.00035342,120]
[421246359,1777287118585,-549.6,0.00035342,120]
[421246360,1777287118596,-500.0,0.00035342,120]